fUST/lending_fUST_20250210
["ID","MTS","AMOUNT","RATE_DAILY","PERIOD"]
[352607646,1739195443531,-1863.01,0.00011917,2]
[352607647,1739195443541,-501.73,0.00011917,2]
[352607648,1739195443550,-500.0,0.00011917,2]
[352607649,1739195443560,-1005.22,0.00011917,2]
[352607650,1739195443574,-484.84558653,0.00011917,2]
[352607651,1739195443587,-500.0,0.00011917,2]
[352607652,1739195443597,-500.0,0.00011917,2]
[352607653,1739195443607,-500.0,0.00011917,2]
[352607654,1739195443619,-1027.61,0.00011917,2]
[352607655,1739195443628,-678.57,0.00011917,2]
[352607656,1739195443638,-616.08,0.00011917,2]
[352607657,1739195443648,-500.0,0.00011917,2]
[352607658,1739195443659,-685.0,0.00011917,2]
[352607659,1739195443669,-4794.23,0.00011917,2]
[352607660,1739195443679,-500.0,0.00011917,2]
[352607661,1739195443688,-151.0,0.00012054,2]
[352607662,1739195443698,-500.0,0.00012054,2]
[352607663,1739195443708,-634.9,0.00012054,2]
[352607664,1739195443718,-500.0,0.00012054,2]
[352607665,1739195443727,-500.0,0.00012054,2]
[352607666,1739195443738,-500.0,0.00012054,2]
[352607667,1739195443748,-500.0,0.00012054,2]
[352607668,1739195443758,-500.0,0.00012054,2]
[352607669,1739195443767,-500.0,0.00012054,2]
[352607670,1739195443777,-500.0,0.00012054,2]
[352607671,1739195443786,-500.0,0.00012054,2]
[352607672,1739195443795,-649.33,0.00012054,2]
[352607673,1739195443805,-516.18,0.00012054,2]
[352607674,1739195443815,-500.0,0.00012054,2]
[352607675,1739195443824,-500.0,0.00012054,2]
[352607676,1739195443834,-500.0,0.00012054,2]
[352607677,1739195443844,-500.0,0.00012054,2]
[352607678,1739195443853,-500.0,0.00012054,2]
[352607679,1739195443863,-1468.89,0.00012054,2]
[352607680,1739195443873,-500.0,0.00012054,2]
[352607681,1739195443883,-500.0,0.00012054,2]
[352607682,1739195443894,-2231.91,0.00012054,2]
[352607683,1739195443905,-894.21,0.00012054,2]
[352607684,1739195443915,-1122.83,0.00012054,2]
[352607685,1739195443924,-500.0,0.00012054,2]
[352607686,1739195443934,-1028.39,0.00012054,2]
[352607687,1739195443943,-500.0,0.00012054,2]
[352607688,1739195443953,-500.0,0.00012054,2]
[352607689,1739195443963,-500.0,0.00012054,2]
[352607690,1739195443972,-4646.76,0.00012054,2]
[352607691,1739195443982,-847.15,0.00012054,2]
[352607692,1739195443994,-8781.17,0.00012054,2]
[352607693,1739195444003,-500.0,0.00012054,2]
[352607694,1739195444012,-500.0,0.00012054,2]
[352607695,1739195444023,-500.0,0.00012054,2]
[352607696,1739195444033,-550.52,0.00012054,2]
[352607697,1739195444043,-970.78,0.00012054,2]
[352607698,1739195444053,-594.86,0.00012054,2]
[352607699,1739195444064,-1863.01,0.00012054,2]
[352607700,1739195444074,-501.73,0.00012054,2]
[352607701,1739195444084,-500.0,0.00012054,2]
[352607702,1739195444094,-1005.22,0.00012054,2]
[352607703,1739195444103,-500.0,0.00012054,2]
[352607704,1739195444113,-500.0,0.00012054,2]
[352607705,1739195444123,-1027.61,0.00012054,2]
[352607706,1739195444133,-678.57,0.00012054,2]
[352607707,1739195444142,-616.08,0.00012054,2]
[352607708,1739195444153,-500.0,0.00012054,2]
[352607709,1739195444162,-685.0,0.00012054,2]
[352607710,1739195444172,-4794.23,0.00012054,2]
[352607711,1739195444182,-500.0,0.00012054,2]
[352607712,1739195444192,-500.0,0.0001208,2]
[352607713,1739195444202,-516.71114806,0.0001208,2]
[352607714,1739195444211,-1000.0,0.00012099,2]
[352607715,1739195444221,-500.0,0.00012191,2]
[352607716,1739195444231,-634.9,0.00012191,2]
[352607717,1739195444243,-500.0,0.00012191,2]
[352607718,1739195444253,-500.0,0.00012191,2]
[352607719,1739195444262,-243.0783839,0.00012191,2]
[352607720,1739195444278,-256.9216161,0.00012191,2]
[352607721,1739195444288,-500.0,0.00012191,2]
[352607722,1739195444298,-500.0,0.00012191,2]
[352607723,1739195444308,-500.0,0.00012191,2]
[352607724,1739195444318,-500.0,0.00012191,2]
[352607725,1739195444328,-500.0,0.00012191,2]
[352607726,1739195444338,-516.18,0.00012191,2]
[352607727,1739195444348,-500.0,0.00012191,2]
[352607728,1739195444358,-500.0,0.00012191,2]
[352607729,1739195444368,-500.0,0.00012191,2]
[352607730,1739195444378,-500.0,0.00012191,2]
[352607731,1739195444389,-500.0,0.00012191,2]
[352607732,1739195444399,-1468.89,0.00012191,2]
[352607733,1739195444408,-500.0,0.00012191,2]
[352607734,1739195444418,-500.0,0.00012191,2]
[352607735,1739195444428,-2231.91,0.00012191,2]
[352607736,1739195444438,-894.21,0.00012191,2]
[352607737,1739195444448,-1122.83,0.00012191,2]
[352607738,1739195444458,-500.0,0.00012191,2]
[352607739,1739195444467,-1028.39,0.00012191,2]
[352607740,1739195444477,-500.0,0.00012191,2]
[352607741,1739195444489,-500.0,0.00012191,2]
[352607742,1739195444498,-415.13915615,0.00012191,2]
[352607743,1739195444511,-84.86084385,0.00012191,2]
[352607744,1739195444521,-4646.76,0.00012191,2]
[352607745,1739195444531,-847.15,0.00012191,2]
[352607746,1739195444540,-3637.68149636,0.00012191,2]
[352607747,1739195444552,-1378.4492847,0.00012191,2]
[352607748,1739195444565,-904.98124392,0.00012191,2]
[352607749,1739195444579,-451.138672,0.00012191,2]
[352607750,1739195444593,-1078.107955,0.00012191,2]
[352607751,1739195444783,-1330.81134802,0.00012191,2]
[352607752,1739195444793,-500.0,0.00012191,2]
[352607753,1739195444802,-500.0,0.00012191,2]
[352607754,1739195444811,-500.0,0.00012191,2]
[352607755,1739195444821,-550.52,0.00012191,2]
[352607756,1739195444830,-970.78,0.00012191,2]
[352607757,1739195444839,-208.65283312,0.00012191,2]
[352607758,1739195444851,-386.20716688,0.00012191,2]
[352607759,1739195444860,-1863.01,0.00012191,2]
[352607760,1739195444869,-501.73,0.00012191,2]
[352607761,1739195444880,-500.0,0.00012191,2]
[352607762,1739195444889,-1005.22,0.00012191,2]
[352607763,1739195444899,-500.0,0.00012191,2]
[352607764,1739195444910,-500.0,0.00012191,2]
[352607765,1739195444919,-1027.61,0.00012191,2]
[352607766,1739195444928,-678.57,0.00012191,2]
[352607767,1739195444938,-616.08,0.00012191,2]
[352607768,1739195444947,-109.51209535,0.00012191,2]
[352607769,1739195444995,-500.0,0.00010958,2]
[352607770,1739195445005,-390.48790465,0.00012191,2]
[352607771,1739195445014,-173.31073086,0.00012191,2]
[352607772,1739195445026,-511.68926914,0.00012191,2]
[352607773,1739195445036,-4794.23,0.00012191,2]
[352607774,1739195445045,-500.0,0.00012328,2]
[352607775,1739195445055,-634.9,0.00012328,2]
[352607776,1739195445064,-500.0,0.00012328,2]
[352607777,1739195445073,-614.9,0.00012328,2]
[352607778,1739195445082,-500.0,0.00012328,2]
[352607779,1739195445091,-500.0,0.00012328,2]
[352607780,1739195445100,-500.0,0.00012328,2]
[352607781,1739195445110,-500.0,0.00012328,2]
[352607782,1739195445119,-205.42,0.00012328,2]
[352607783,1739195445128,-389.32512007,0.00012328,2]
[352607784,1739195445140,-110.67487993,0.00012328,2]
[352607785,1739195445149,-389.33512007,0.00012328,2]
[352607786,1739195445161,-126.84487993,0.00012328,2]
[352607787,1739195445171,-390.34379564,0.00012328,2]
[352607812,1739195446045,-521.37999999,0.00010848,2]
[352607818,1739195446106,-1151.35426422,0.00010848,2]
[352607820,1739195446117,-3327.26573579,0.00010848,2]
[352607822,1739195446127,-321.30266353,0.00010958,2]
[352607824,1739196356210,-176.44026546,0.00010325,2]
[352607825,1739196356230,-2107.2305344,0.00010429,2]
[352607826,1739196396083,-176.44026546,0.00010325,2]
[352607827,1739196440091,-2716.32920014,0.00010325,2]
[352607828,1739196440113,-284.07569116,0.00010434,2]
[352607829,1739196440134,-871.28063999,0.00010434,2]
[352607830,1739196440155,-400.0,0.00010685,2]
[352607831,1739196440176,-162.13356209,0.00010748,2]
[352607832,1739196440199,-191.80740767,0.00010826,2]
[352607833,1739196445142,-108.19259233,0.00010826,2]
[352607834,1739196445277,-7438.69753278,0.00010827,2]
[352607835,1739196445298,-500.0,0.00010957,2]
[352607836,1739196445322,-500.0,0.00010957,2]
[352607837,1739196445343,-500.0,0.00010957,2]
[352607838,1739196445366,-500.0,0.00010957,2]
[352607839,1739196445389,-192.19517149,0.00010957,2]
[352607840,1739196453101,-380.08944719,0.00010957,2]
[352607841,1739196453122,-295.43344489,0.00010957,2]
[352607842,1739196453146,-500.0,0.00010957,2]
[352607843,1739196453167,-500.0,0.00010957,2]
[352607844,1739196453190,-281.54141885,0.00010957,2]
[352607845,1739196599538,2110.2928,0.00010241,2]
[352607846,1739196599559,2147.84665466,0.00010241,2]
[352607906,1739196632382,-300.0,0.0001024,2]
[352607908,1739196632391,-895.1999999,0.00010241,2]
[352607915,1739196632443,-18690.95963324,0.00010241,2]
[352607917,1739196632452,-7438.69753278,0.00010955,2]
[352607919,1739196632461,-218.45858115,0.00010957,2]
[352607921,1739196632470,-500.0,0.00010957,2]
[352607923,1739196632479,-500.0,0.00010957,2]
[352607925,1739196632489,-217.44993648,0.00010957,2]
[352607927,1739196632498,-500.0,0.00010957,2]
[352607929,1739196632507,-500.0,0.00010957,2]
[352607930,1739196632517,-500.0,0.00010957,2]
[352607932,1739196632526,-500.0,0.00010957,2]
[352607934,1739196632535,-500.0,0.00010957,2]
[352607936,1739196632544,-445.7558056,0.00010957,2]
[352607937,1739196632553,-500.0,0.00010957,2]
[352607939,1739196632562,-500.0,0.00010957,2]
[352607940,1739196632572,-500.0,0.00010957,2]
[352607942,1739196632581,-500.0,0.00010957,2]
[352607944,1739196632590,-500.0,0.00010958,2]
[352607946,1739196632599,-500.0,0.00010958,2]
[352607948,1739196632608,-500.0,0.00010958,2]
[352607949,1739196632617,-500.0,0.00010958,2]
[352607951,1739196632626,-500.0,0.00010958,2]
[352607953,1739196632635,-500.0,0.00010958,2]
[352607955,1739196632645,-500.0,0.00010958,2]
[352607957,1739196632654,-500.0,0.00010958,2]
[352607959,1739196632663,-500.0,0.00010958,2]
[352607961,1739196632673,-500.0,0.00010958,2]
[352607962,1739196632682,-585.23,0.00010958,2]
[352607964,1739196632691,-595.8453223,0.00010958,2]
[352607966,1739196632700,-582.26,0.00010958,2]
[352607968,1739196632710,-500.0,0.00010958,2]
[352607969,1739196632719,-500.0,0.00010958,2]
[352607971,1739196632728,-500.0,0.00010958,2]
[352607973,1739196632737,-682.54,0.00010958,2]
[352607975,1739196632746,-500.0,0.00010958,2]
[352607977,1739196632755,-500.0,0.00010958,2]
[352607978,1739196632764,-508.22,0.00010958,2]
[352607979,1739196632774,-500.0,0.00010958,2]
[352607980,1739196632783,-500.0,0.00010958,2]
[352607981,1739196632793,-500.0,0.00010958,2]
[352607982,1739196632802,-618.99,0.00010958,2]
[352607983,1739196632811,-500.0,0.00010958,2]
[352607984,1739196632820,-500.0,0.00010958,2]
[352607985,1739196632829,-516.62,0.00010958,2]
[352607986,1739196632839,-500.0,0.00010958,2]
[352607987,1739196632848,-615.89,0.00010958,2]
[352607988,1739196632858,-500.0,0.00010958,2]
[352607989,1739196632867,-500.0,0.00010958,2]
[352607990,1739196632876,-145.04725504,0.00010958,2]
[352607991,1739196632894,-354.95274496,0.00010958,2]
[352607992,1739196632903,-500.0,0.00010958,2]
[352607993,1739196632912,-500.0,0.00010958,2]
[352607994,1739196632922,-500.0,0.00010958,2]
[352607995,1739196632931,-500.0,0.00010958,2]
[352607996,1739196632939,-500.0,0.00010958,2]
[352607997,1739196632949,-500.0,0.00010958,2]
[352607998,1739196632960,-4075.62847054,0.00010958,2]
[352607999,1739196632972,-1690.81084424,0.00010958,2]
[352608017,1739196638180,-5937.49068522,0.00010958,2]
[352608018,1739196638190,-711.7,0.00010958,2]
[352608019,1739196638199,-500.0,0.00010958,2]
[352608020,1739196638209,-556.41,0.00010958,2]
[352608021,1739196638218,-500.0,0.00010958,2]
[352608022,1739196638227,-500.0,0.00010958,2]
[352608023,1739196638237,-500.0,0.00010958,2]
[352608024,1739196638247,-500.0,0.00010958,2]
[352608025,1739196638256,-500.0,0.00010958,2]
[352608026,1739196638265,-500.0,0.00010958,2]
[352608027,1739196638275,-500.0,0.00010958,2]
[352608028,1739196638284,-500.0,0.00010958,2]
[352608029,1739196638293,-500.0,0.00010958,2]
[352608030,1739196638302,-500.0,0.00010958,2]
[352608031,1739196638311,-500.0,0.00010958,2]
[352608032,1739196638321,-500.0,0.00010958,2]
[352608033,1739196638330,-500.0,0.00010958,2]
[352608034,1739196638339,-1065.28,0.00010958,2]
[352608035,1739196638348,-576.35398343,0.00010958,2]
[352608036,1739196638358,-500.0,0.00010958,2]
[352608037,1739196638367,-4941.04,0.00010958,2]
[352608038,1739196638376,-500.0,0.00010958,2]
[352608039,1739196638386,-500.0,0.00010958,2]
[352608040,1739196638395,-560.29,0.00010958,2]
[352608041,1739196638404,-500.0,0.00010958,2]
[352608042,1739196638413,-1829.09,0.00010958,2]
[352608043,1739196638422,-500.0,0.00010958,2]
[352608044,1739196638434,-500.0,0.00010958,2]
[352608045,1739196638443,-500.0,0.00010958,2]
[352608046,1739196638453,-500.0,0.00010958,2]
[352608047,1739196638462,-500.0,0.00010958,2]
[352608049,1739196638472,-500.0,0.00010958,2]
[352608051,1739196638481,-500.0,0.00010958,2]
[352608052,1739196638490,-503.07,0.00010958,2]
[352608053,1739196638499,-500.0,0.00010958,2]
[352608054,1739196638508,-500.0,0.00010958,2]
[352608055,1739196638518,-500.0,0.00010958,2]
[352608056,1739196638527,-500.0,0.00010958,2]
[352608057,1739196638536,-188.19887511,0.00010958,2]
[352608058,1739196638545,-245.63,0.00010958,2]
[352608059,1739196638554,-500.0,0.00010958,2]
[352608060,1739196638564,-2461.35,0.00010958,2]
[352608061,1739196638573,-500.0,0.00010958,2]
[352608062,1739196638583,-1052.97,0.00010958,2]
[352608063,1739196638592,-500.0,0.00010958,2]
[352608064,1739196638602,-500.0,0.00010958,2]
[352608065,1739196638611,-500.0,0.00010958,2]
[352608066,1739196638620,-500.0,0.00010958,2]
[352608067,1739196638629,-500.0,0.00010958,2]
[352608068,1739196638639,-1295.12,0.00010958,2]
[352608069,1739196638648,-500.0,0.00010958,2]
[352608070,1739196638657,-500.0,0.00010958,2]
[352608071,1739196638668,-500.0,0.00010958,2]
[352608072,1739196638679,-1187.4,0.00010958,2]
[352608073,1739196638689,-590.74,0.00010958,2]
[352608074,1739196638698,-500.0,0.00010958,2]
[352608075,1739196638711,-500.0,0.00010958,2]
[352608076,1739196638720,-500.0,0.00010958,2]
[352608077,1739196638729,-500.0,0.00010958,2]
[352608078,1739196638739,-500.0,0.00010958,2]
[352608079,1739196638748,-1398.28,0.00010958,2]
[352608080,1739196638757,-500.0,0.00010958,2]
[352608081,1739196638767,-500.0,0.00010958,2]
[352608082,1739196638776,-500.0,0.00010958,2]
[352608083,1739196638786,-1030.08,0.00010958,2]
[352608084,1739196638795,-5594.46,0.00010958,2]
[352608085,1739196638805,-500.0,0.00010958,2]
[352608086,1739196638814,-500.0,0.00010958,2]
[352608087,1739196638823,-551.54,0.00010958,2]
[352608088,1739196638832,-373.44,0.00010958,2]
[352608089,1739196638842,-500.0,0.00010958,2]
[352608090,1739196638851,-663.83,0.00010958,2]
[352608091,1739196638861,-500.0,0.00010958,2]
[352608092,1739196638870,-1381.6,0.00010958,2]
[352608093,1739196638880,-500.0,0.00010958,2]
[352608094,1739196638890,-2401.0,0.00010958,2]
[352608095,1739196638900,-500.0,0.00010958,2]
[352608096,1739196638909,-500.0,0.00010958,2]
[352608097,1739196638918,-500.0,0.00010958,2]
[352608098,1739196638929,-500.0,0.00010958,2]
[352608099,1739196638938,-630.64,0.00010958,2]
[352608100,1739196638948,-500.0,0.00011095,2]
[352608101,1739196638961,-500.0,0.00011095,2]
[352608102,1739196638977,-500.0,0.00011095,2]
[352608103,1739196638986,-500.0,0.00011095,2]
[352608104,1739196638995,-500.0,0.00011095,2]
[352608105,1739196639006,-585.23,0.00011095,2]
[352608106,1739196639016,-582.26,0.00011095,2]
[352608107,1739196639025,-500.0,0.00011095,2]
[352608108,1739196639036,-500.0,0.00011095,2]
[352608109,1739196639045,-500.0,0.00011095,2]
[352608110,1739196639056,-682.54,0.00011095,2]
[352608111,1739196639066,-500.0,0.00011095,2]
[352608112,1739196639075,-500.0,0.00011095,2]
[352608113,1739196639085,-508.22,0.00011095,2]
[352608114,1739196639094,-500.0,0.00011095,2]
[352608115,1739196639104,-500.0,0.00011095,2]
[352608116,1739196639114,-500.0,0.00011095,2]
[352608117,1739196639123,-500.0,0.00011095,2]
[352608118,1739196639132,-500.0,0.00011095,2]
[352608119,1739196639142,-597.8535654,0.00011095,2]
[352608120,1739196639152,-500.0,0.00011095,2]
[352608121,1739196639161,-500.0,0.00011095,2]
[352608122,1739196639170,-500.0,0.00011095,2]
[352608123,1739196639181,-500.0,0.00011095,2]
[352608124,1739196639190,-500.0,0.00011095,2]
[352608125,1739196639199,-500.0,0.00011095,2]
[352608126,1739196639208,-500.0,0.00011095,2]
[352608127,1739196639217,-11703.93,0.00011095,2]
[352608128,1739196639227,-711.7,0.00011095,2]
[352608129,1739196639242,-500.0,0.00011095,2]
[352608130,1739196639251,-556.41,0.00011095,2]
[352608131,1739196639260,-500.0,0.00011095,2]
[352608132,1739196639269,-500.0,0.00011095,2]
[352608133,1739196639279,-526.4599109,0.00011095,2]
[352608134,1739196639288,-500.0,0.00011095,2]
[352608135,1739196639297,-500.0,0.00011095,2]
[352608136,1739196639306,-500.0,0.00011095,2]
[352608137,1739196639315,-500.0,0.00011095,2]
[352608138,1739196639325,-500.0,0.00011095,2]
[352608139,1739196639334,-500.0,0.00011095,2]
[352608140,1739196639343,-500.0,0.00011095,2]
[352608141,1739196639352,-500.0,0.00011095,2]
[352608142,1739196639361,-1065.28,0.00011095,2]
[352608143,1739196639371,-500.0,0.00011095,2]
[352608144,1739196639380,-4941.04,0.00011095,2]
[352608145,1739196639494,-500.0,0.00011095,2]
[352608146,1739196639503,-500.0,0.00011095,2]
[352608147,1739196639513,-560.29,0.00011095,2]
[352608148,1739196639522,-196.79989874,0.00011095,2]
[352608149,1739196639532,-1829.09,0.00011095,2]
[352608150,1739196639541,-500.0,0.00011095,2]
[352608151,1739196639550,-500.0,0.00011095,2]
[352608152,1739196639559,-500.0,0.00011095,2]
[352608153,1739196639569,-500.0,0.00011095,2]
[352608154,1739196639578,-500.0,0.00011095,2]
[352608155,1739196639587,-500.0,0.00011095,2]
[352608156,1739196639596,-503.07,0.00011095,2]
[352608157,1739196639606,-500.0,0.00011095,2]
[352608158,1739196639615,-500.0,0.00011095,2]
[352608159,1739196639625,-500.0,0.00011095,2]
[352608160,1739196639634,-500.0,0.00011095,2]
[352608161,1739196639644,-2461.35,0.00011095,2]
[352608162,1739196639653,-500.0,0.00011095,2]
[352608163,1739196639663,-1052.97,0.00011095,2]
[352608165,1739196639672,-500.0,0.00011095,2]
[352608166,1739196639685,-500.0,0.00011095,2]
[352608167,1739196639694,-500.0,0.00011095,2]
[352608168,1739196639703,-500.0,0.00011095,2]
[352608169,1739196639712,-500.0,0.00011095,2]
[352608170,1739196639721,-1295.12,0.00011095,2]
[352608171,1739196639731,-500.0,0.00011095,2]
[352608172,1739196639740,-500.0,0.00011095,2]
[352608173,1739196639750,-500.0,0.00011095,2]
[352608174,1739196639760,-1187.4,0.00011095,2]
[352608175,1739196639769,-590.74,0.00011095,2]
[352608176,1739196639778,-500.0,0.00011095,2]
[352608177,1739196639787,-289.58962279,0.00011095,2]
[352608178,1739196639797,-170.7404736,0.00011095,2]
[352608179,1739196639806,-500.0,0.00011095,2]
[352608180,1739196639815,-500.0,0.00011095,2]
[352608181,1739196639824,-1398.28,0.00011095,2]
[352608182,1739196639834,-500.0,0.00011095,2]
[352608184,1739196639843,-500.0,0.00011095,2]
[352608185,1739196639852,-1030.08,0.00011095,2]
[352608186,1739196639862,-5594.46,0.00011095,2]
[352608187,1739196639871,-434.48,0.00011095,2]
[352608188,1739196639880,-597.11,0.00011095,2]
[352608189,1739196639889,-551.54,0.00011095,2]
[352608190,1739196639899,-500.0,0.00011095,2]
[352608191,1739196639908,-663.83,0.00011095,2]
[352608193,1739196639918,-500.0,0.00011095,2]
[352608195,1739196639927,-1381.6,0.00011095,2]
[352608197,1739196639936,-500.0,0.00011095,2]
[352608199,1739196639946,-2401.0,0.00011095,2]
[352608200,1739196639960,-500.0,0.00011095,2]
[352608202,1739196639971,-500.0,0.00011095,2]
[352608204,1739196639981,-500.0,0.00011095,2]
[352608206,1739196639990,-500.0,0.00011095,2]
[352608207,1739196639999,-630.64,0.00011095,2]
[352608208,1739196640010,-500.0,0.00011232,2]
[352608209,1739196640020,-500.0,0.00011232,2]
[352608210,1739196640030,-500.0,0.00011232,2]
[352608212,1739196640042,-500.0,0.00011232,2]
[352608214,1739196640052,-585.23,0.00011232,2]
[352608216,1739196640061,-582.26,0.00011232,2]
[352608217,1739196640071,-500.0,0.00011232,2]
[352608218,1739196640080,-500.0,0.00011232,2]
[352608219,1739196640089,-500.0,0.00011232,2]
[352608220,1739196640098,-682.54,0.00011232,2]
[352608221,1739196640107,-500.0,0.00011232,2]
[352608222,1739196640118,-500.0,0.00011232,2]
[352608223,1739196640127,-508.22,0.00011232,2]
[352608224,1739196640137,-500.0,0.00011232,2]
[352608225,1739196640146,-500.0,0.00011232,2]
[352608226,1739196640156,-500.0,0.00011232,2]
[352608227,1739196640165,-500.0,0.00011232,2]
[352608229,1739196640175,-500.87565422,0.00011232,2]
[352608230,1739196640185,-500.0,0.00011232,2]
[352608231,1739196640194,-500.0,0.00011232,2]
[352608232,1739196640203,-500.0,0.00011232,2]
[352608233,1739196640212,-500.0,0.00011232,2]
[352608234,1739196640224,-500.0,0.00011232,2]
[352608235,1739196640233,-500.0,0.00011232,2]
[352608236,1739196640242,-500.0,0.00011232,2]
[352608237,1739196640251,-11703.93,0.00011232,2]
[352608238,1739196640260,-711.7,0.00011232,2]
[352608239,1739196640269,-500.0,0.00011232,2]
[352608240,1739196640279,-556.41,0.00011232,2]
[352608241,1739196640288,-500.0,0.00011232,2]
[352608242,1739196640297,-500.0,0.00011232,2]
[352608243,1739196640307,-500.0,0.00011232,2]
[352608244,1739196640316,-500.0,0.00011232,2]
[352608245,1739196640329,-500.0,0.00011232,2]
[352608246,1739196640338,-500.0,0.00011232,2]
[352608247,1739196640347,-298.74117131,0.00011232,2]
[352608248,1739196640356,-556.25415265,0.00011232,2]
[352608249,1739196640365,-500.0,0.00011232,2]
[352608250,1739196640374,-1065.28,0.00011232,2]
[352608251,1739196640383,-500.0,0.00011232,2]
[352608252,1739196640393,-4941.04,0.00011232,2]
[352608253,1739196640402,-500.0,0.00011232,2]
[352608254,1739196640411,-500.0,0.00011232,2]
[352608255,1739196640421,-560.29,0.00011232,2]
[352608256,1739196640432,-1829.09,0.00011232,2]
[352608257,1739196640440,-500.0,0.00011232,2]
[352608258,1739196640450,-500.0,0.00011232,2]
[352608259,1739196640459,-500.0,0.00011232,2]
[352608261,1739196640467,-500.0,0.00011232,2]
[352608263,1739196640477,-585.20542839,0.00011232,2]
[352608265,1739196640486,-503.07,0.00011232,2]
[352608266,1739196640495,-500.0,0.00011232,2]
[352608268,1739196640505,-500.0,0.00011232,2]
[352608270,1739196640514,-500.0,0.00011232,2]
[352608272,1739196640523,-2461.35,0.00011232,2]
[352608273,1739196640532,-500.0,0.00011232,2]
[352608274,1739196640542,-1052.97,0.00011232,2]
[352608275,1739196640551,-500.0,0.00011232,2]
[352608276,1739196640559,-500.0,0.00011232,2]
[352608277,1739196640568,-500.0,0.00011232,2]
[352608278,1739196640577,-500.0,0.00011232,2]
[352608279,1739196640587,-500.0,0.00011232,2]
[352608280,1739196640596,-1295.12,0.00011232,2]
[352608281,1739196640605,-500.0,0.00011232,2]
[352608282,1739196640614,-500.0,0.00011232,2]
[352608283,1739196640623,-500.0,0.00011232,2]
[352608284,1739196640632,-1187.4,0.00011232,2]
[352608285,1739196640641,-590.74,0.00011232,2]
[352608286,1739196640650,-500.0,0.00011232,2]
[352608287,1739196640659,-500.0,0.00011232,2]
[352608288,1739196640668,-500.0,0.00011232,2]
[352608289,1739196640677,-1398.28,0.00011232,2]
[352608290,1739196640687,-500.0,0.00011232,2]
[352608291,1739196640696,-500.0,0.00011232,2]
[352608292,1739196640705,-1030.08,0.00011232,2]
[352608293,1739196640714,-5594.46,0.00011232,2]
[352608294,1739196640723,-551.54,0.00011232,2]
[352608295,1739196640733,-500.0,0.00011232,2]
[352608296,1739196640742,-663.83,0.00011232,2]
[352608297,1739196640751,-500.0,0.00011232,2]
[352608298,1739196640760,-1381.6,0.00011232,2]
[352608299,1739196640770,-500.0,0.00011232,2]
[352608300,1739196640779,-2401.0,0.00011232,2]
[352608301,1739196640788,-409.48,0.00011232,2]
[352608302,1739196640800,-500.0,0.00011232,2]
[352608303,1739196640809,-500.0,0.00011232,2]
[352608304,1739196640818,-500.0,0.00011232,2]
[352608305,1739196640828,-630.64,0.00011232,2]
[352608306,1739196640837,-420.0,0.00011262,2]
[352608307,1739196640846,-254.9811215,0.00011269,2]
[352608308,1739196640855,-210.79783538,0.00011368,2]
[352608309,1739196640864,-500.0,0.00011368,2]